bitfinex/quotes_SOLUSD_20260105
["timestamp","ask_amount","ask_price","bid_price","bid_amount"]
[1767623010250,9.95810732,133.1,133.04,28.74821756]
[1767623010462,9.95810732,133.09,133.06,8.21778185]
[1767623010643,9.95810732,133.09,133.06,0.70244652]
[1767623011235,9.95810732,133.09,133.06,8.21783252]
[1767623011757,9.95810732,133.09,133.06,0.70244652]
[1767623012054,9.95810732,133.08,133.06,0.70244652]
[1767623012351,9.95810732,133.09,133.06,0.70244652]
[1767623012558,9.95810732,133.08,133.06,0.70244652]
[1767623012750,9.95810732,133.09,133.06,0.70244652]
[1767623012938,9.95810732,133.07,133.04,0.7125627]
[1767623013456,9.95810732,133.07,133.05,0.7125627]
[1767623014342,9.95810732,133.08,133.05,0.7125627]
[1767623014542,13.7,133.11,133.06,0.7125627]
[1767623014754,9.95810732,133.08,133.06,0.7125627]
[1767623014954,9.95810732,133.08,133.04,8.22869667]
[1767623015254,0.10873869,133.08,133.03,0.7125627]
[1767623015459,9.95810732,133.05,133.03,0.7125627]
[1767623015648,9.89810733,133.05,133.03,0.7125627]
[1767623016359,9.89810733,133.05,133.01,0.7125627]
[1767623016657,0.69856671,133.08,133.0,2.7125627]
[1767623016833,34.6481322,133.09,133.0,2.7125627]
[1767623016834,9.95810732,133.02,133.0,2.7125627]
[1767623017034,37.70962289,133.26,133.01,0.7125627]
[1767623017234,37.70962289,133.26,133.08,9.95810732]
[1767623017235,9.95810732,133.13,133.08,9.95810732]
[1767623017435,13.7,133.12,133.08,9.95810732]
[1767623017671,14.39856671,133.12,133.08,9.95810732]
[1767623017853,12.41799839,133.19,133.12,0.7125627]
[1767623018051,13.7,133.27,133.19,3.56e-06]
[1767623018252,4.68590015,133.31,133.19,8.35013837]
[1767623018558,9.95810732,133.3,133.21,8.35013837]
[1767623018862,7.49906261,133.35,133.23,8.35013837]
[1767623019043,0.2,133.37,133.24,22.05013837]
[1767623019363,0.2,133.37,133.31,9.95810732]
[1767623019364,7.69798373,133.37,133.31,9.95810732]
[1767623019655,1e-08,133.37,133.36,9.95810732]
[1767623019858,37.45384012,133.5,133.3,22.05013837]
[1767623020048,23.65810732,133.49,133.43,9.95810732]
[1767623020245,0.69856671,133.49,133.35,8.35013837]
[1767623020445,0.69856671,133.51,133.36,13.7]
[1767623020646,9.95810732,133.48,133.42,9.95810732]
[1767623020868,8.35013837,133.51,133.35,13.86542837]
[1767623021042,0.69856671,133.53,133.4,34.58701992]
[1767623021242,9.95810732,133.46,133.4,44.54512724]
[1767623021544,10.65667403,133.55,133.45,18.30824569]
[1767623021744,10.65667403,133.55,133.49,9.95810732]
[1767623021941,9.95810732,133.53,133.45,8.35013837]
[1767623022164,9.95810732,133.51,133.41,13.68]
[1767623022345,9.95810732,133.51,133.43,9.95810732]
[1767623022346,9.95810732,133.49,133.43,9.95810732]
[1767623022547,9.95810732,133.5,133.44,9.95810732]
[1767623022948,8.18808138,133.52,133.42,26.23294857]
[1767623023150,31.8261887,133.52,133.47,9.95810732]
[1767623023349,0.69856671,133.49,133.42,7.49512816]
[1767623023551,10.65667403,133.49,133.44,9.95810732]
[1767623023759,10.65667403,133.49,133.43,9.95810732]
[1767623024046,13.68,133.48,133.43,9.95810732]
[1767623024369,13.68,133.48,133.44,9.95810732]
[1767623024569,13.68,133.48,133.44,6.11425607]
[1767623024773,8.1897894,133.49,133.44,6.11425607]
[1767623025078,6.11425607,133.51,133.45,6.11425607]
[1767623025364,6.11425607,133.54,133.48,6.11425607]
[1767623025665,6.11425607,133.53,133.48,6.11425607]
[1767623025847,6.11425607,133.53,133.44,0.69856671]
[1767623026043,6.11425607,133.53,133.47,6.11425607]
[1767623026044,19.79425607,133.53,133.47,6.11425607]
[1767623026244,7.48951467,133.52,133.47,6.11425607]
[1767623026449,21.16951467,133.52,133.47,6.11425607]
[1767623026652,21.16951467,133.52,133.44,8.19222946]
[1767623026875,21.16951467,133.52,133.47,6.11425607]
[1767623027467,27.28377074,133.52,133.47,6.11425607]
[1767623027683,27.98233745,133.52,133.46,6.11425607]
[1767623027847,27.98233745,133.52,133.42,0.69856671]
[1767623027848,6.81282278,133.5,133.42,0.69856671]
[1767623028053,0.69856671,133.48,133.44,6.11425607]
[1767623028749,14.37856671,133.48,133.44,6.11425607]
[1767623028952,0.69856671,133.48,133.44,6.11425607]
[1767623029159,14.37856671,133.48,133.44,6.11425607]
[1767623029386,0.69856671,133.48,133.44,6.11425607]
[1767623029563,14.37856671,133.48,133.44,6.11425607]
[1767623029757,0.69856671,133.48,133.44,6.11425607]
[1767623029958,0.69856671,133.48,133.45,6.11425607]
[1767623030483,14.3046369,133.48,133.42,6.11425607]
[1767623030660,13.66,133.47,133.42,6.11425607]
[1767623030862,13.66,133.47,133.43,6.11425607]
[1767623031085,13.66,133.47,133.41,0.69856671]
[1767623031086,20.47282278,133.47,133.41,0.69856671]
[1767623031382,0.69856671,133.45,133.41,6.11425607]
[1767623031587,13.66,133.44,133.41,6.11425607]
[1767623032286,13.66,133.44,133.4,6.11425607]
[1767623032876,13.66,133.44,133.41,6.11425607]
[1767623033373,21.15437109,133.44,133.41,6.11425607]
[1767623033687,13.66,133.43,133.4,6.11425607]
[1767623034194,13.66,133.43,133.41,6.11425607]
[1767623034762,13.66,133.43,133.38,8.14986439]
[1767623034763,7.49286798,133.47,133.42,6.76681603]
[1767623035069,18.72836466,133.49,133.36,8.35013837]
[1767623035070,7.49187579,133.48,133.44,6.11425607]
[1767623035261,7.49187579,133.48,133.43,6.76681603]
[1767623035596,13.66,133.47,133.43,0.65255996]
[1767623035960,19.77425607,133.47,133.41,6.11425607]
[1767623036266,7.49288176,133.46,133.41,6.76681603]
[1767623036591,13.66,133.45,133.41,6.76681603]
[1767623037293,13.66,133.45,133.42,6.11425607]
[1767623039095,13.66,133.45,133.39,0.65255996]
[1767623039096,19.77425607,133.45,133.39,0.65255996]
[1767623039268,27.96016979,133.45,133.4,6.11425607]
[1767623041274,14.30016979,133.45,133.4,6.11425607]
[1767623041472,13.66,133.44,133.4,6.11425607]
[1767623042092,13.66,133.44,133.41,6.11425607]
[1767623042262,13.66,133.44,133.4,6.11425607]
[1767623042462,8.18591372,133.45,133.41,6.11425607]
[1767623042685,13.66,133.44,133.41,6.11425607]
[1767623042870,0.6528768,133.47,133.43,6.11425607]
[1767623043190,13.66,133.46,133.44,6.11425607]
[1767623043577,13.66,133.46,133.43,6.11425607]
[1767623044067,8.14531785,133.47,133.43,6.11425607]
[1767623044068,13.66,133.45,133.43,6.11425607]
[1767623044788,14.3128768,133.45,133.43,6.11425607]
[1767623045177,13.66,133.45,133.43,6.11425607]
[1767623045594,7.49456643,133.43,133.35,0.68332622]
[1767623045895,7.49456643,133.43,133.38,6.11425607]
[1767623045896,13.6088225,133.43,133.38,6.11425607]
[1767623046064,13.66,133.42,133.38,6.11425607]
[1767623046263,19.77425607,133.42,133.38,6.11425607]
[1767623046477,13.66,133.42,133.38,6.11425607]
[1767623047585,27.26946606,133.42,133.37,14.29546681]
[1767623048865,27.26946606,133.42,133.37,0.68332622]
[1767623049071,13.66,133.42,133.38,6.79758229]
[1767623049288,13.66,133.42,133.35,0.68332622]
[1767623049289,6.34332372,133.41,133.35,0.68332622]
[1767623049494,6.11425607,133.36,133.31,0.68332622]
[1767623049792,6.11425607,133.34,133.29,0.68332622]
[1767623050084,6.11425607,133.33,133.29,0.68332622]
[1767623050279,19.77425607,133.32,133.27,6.79758229]
[1767623050805,13.66,133.33,133.29,6.79758229]
[1767623051293,21.16037243,133.33,133.29,6.79758229]
[1767623051499,6.11425607,133.32,133.29,0.68332622]
[1767623051785,27.2746285,133.33,133.29,0.68332622]
[1767623051992,13.6146285,133.33,133.29,0.68332622]
[1767623052192,27.2746285,133.33,133.29,0.68332622]
[1767623052890,21.15985443,133.34,133.29,6.79758229]
[1767623053099,27.2741105,133.34,133.29,6.79758229]
[1767623054189,27.2741105,133.34,133.29,0.68332622]
[1767623054398,6.11425607,133.33,133.29,0.68332622]
[1767623055284,27.50317815,133.34,133.28,13.617026]
[1767623055482,7.50053249,133.33,133.3,0.68332622]
[1767623055685,13.61478856,133.33,133.3,0.68332622]
[1767623056576,7.50053249,133.33,133.3,0.68332622]
[1767623057896,13.61478856,133.33,133.3,0.68332622]
[1767623058274,13.61478856,133.33,133.28,6.79758229]
[1767623058482,7.50053249,133.33,133.28,6.79758229]
[1767623058681,13.61478856,133.33,133.28,6.79758229]
[1767623058882,13.61478856,133.33,133.28,14.30051186]
[1767623059993,7.50053249,133.33,133.29,0.68332622]
[1767623062180,13.8429383,133.35,133.3,6.79758229]
[1767623062392,27.5029383,133.35,133.3,6.79758229]
[1767623065505,27.5029383,133.35,133.3,0.68332622]
[1767623068510,27.27387065,133.35,133.31,0.68332622]
[1767623069001,27.29387065,133.35,133.31,0.68332622]
[1767623072390,13.61387065,133.35,133.31,0.68332622]
[1767623072609,27.29387065,133.35,133.31,0.68332622]
[1767623072806,0.69502039,133.42,133.33,0.65829175]
[1767623073107,0.69502039,133.42,133.36,6.77254782]
[1767623073108,6.11425607,133.41,133.36,6.77254782]
[1767623073312,13.61039648,133.41,133.36,0.65829175]
[1767623073713,6.11425607,133.39,133.36,0.65829175]
[1767623073912,6.80927646,133.37,133.34,13.68]
[1767623074095,6.11425607,133.36,133.31,13.61508045]
[1767623074431,6.11425607,133.37,133.31,13.61508045]
[1767623074788,6.11425607,133.37,133.32,7.5007313]
[1767623075192,6.11425607,133.37,133.32,13.61498737]
[1767623075788,13.61238439,133.37,133.32,14.27327912]
[1767623076202,6.80927646,133.36,133.32,0.65829175]
[1767623076400,6.80927646,133.36,133.3,20.45254782]
[1767623076602,6.80927646,133.36,133.31,0.65829175]
[1767623077316,6.80927646,133.35,133.28,0.65829175]
[1767623077519,39.92297348,133.37,133.29,6.77254782]
[1767623077520,6.80927646,133.34,133.29,6.77254782]
[1767623077701,6.80927646,133.34,133.3,0.65829175]
[1767623077906,13.61401376,133.34,133.3,0.65829175]
[1767623079100,14.37502039,133.35,133.3,8.16015188]
[1767623079101,27.9888576,133.35,133.3,8.16015188]
[1767623079704,21.87460153,133.35,133.3,14.27440795]
[1767623080023,0.69502039,133.35,133.3,14.27440795]
[1767623080422,6.80927646,133.35,133.3,14.27440795]
[1767623081117,14.30847028,133.35,133.3,8.16015188]
[1767623081495,7.49919382,133.35,133.31,0.65829175]
[1767623081695,13.61344989,133.35,133.31,0.65829175]
[1767623081902,6.11425607,133.34,133.31,0.65829175]
[1767623083126,14.30847028,133.35,133.31,0.65829175]
[1767623086725,18.15019089,133.35,133.31,0.65829175]
[1767623088228,18.15019089,133.35,133.29,9.95597668]
[1767623088229,18.15064312,133.34,133.29,8.16051051]
[1767623088431,18.15064312,133.34,133.29,0.65829175]
[1767623088730,18.15064312,133.34,133.3,0.65829175]
[1767623089037,31.83064312,133.34,133.3,0.65829175]
[1767623089210,21.87466644,133.34,133.3,0.65829175]
[1767623089405,9.95597668,133.31,133.28,0.65829175]
[1767623089828,9.95597668,133.32,133.28,0.65829175]
[1767623090021,9.95597668,133.29,133.26,0.75829175]
[1767623090222,17.3986058,133.29,133.26,0.75829175]
[1767623090932,9.89597669,133.29,133.26,0.75829175]
[1767623091829,8.19717615,133.3,133.26,0.75829175]
[1767623092019,9.95597668,133.29,133.26,0.75829175]
[1767623092824,0.69502039,133.3,133.26,8.26238338]
[1767623093039,9.95597668,133.3,133.26,8.26238338]
[1767623095735,18.15245607,133.3,133.26,8.26238338]
[1767623095913,10.65057826,133.3,133.26,8.26238338]
[1767623096936,9.95597668,133.29,133.26,8.26238338]
[1767623097142,0.69460158,133.28,133.26,7.60409163]
[1767623097317,0.63460157,133.28,133.26,7.60409163]
[1767623098440,0.63460157,133.28,133.26,0.1]
[1767623098742,0.57460158,133.28,133.26,0.1]
[1767623099438,0.51460159,133.28,133.26,0.1]
[1767623100318,13.68,133.31,133.26,0.1]
[1767623100319,9.95597668,133.32,133.26,0.79444811]
[1767623100541,9.95597668,133.32,133.26,10.75042479]
[1767623100838,13.68,133.35,133.29,9.95597668]
[1767623101018,9.95597668,133.33,133.27,9.95597668]
[1767623101218,0.70995041,133.31,133.26,14.50093091]
[1767623101442,0.70995041,133.31,133.26,24.45690759]
[1767623102426,9.95597668,133.3,133.26,8.32499539]
[1767623102629,10.60268268,133.3,133.26,0.82093091]
[1767623102930,9.95597668,133.29,133.26,0.82093091]
[1767623103518,9.95597668,133.29,133.26,8.32505786]
[1767623103814,9.95597668,133.3,133.27,0.72093091]
[1767623106745,23.63597668,133.32,133.28,0.72093091]
[1767623106946,24.34528832,133.32,133.28,0.72093091]
[1767623107643,166.60269529,133.38,133.3,0.72093091]
[1767623107644,14.38995041,133.34,133.3,0.72093091]
[1767623107945,0.70995041,133.34,133.3,0.72093091]
[1767623108142,10.66592709,133.34,133.3,0.72093091]
[1767623108745,18.16602434,133.34,133.3,0.72093091]
[1767623110645,3.89937083,133.33,133.3,0.72093091]
[1767623112354,11.39964028,133.33,133.3,0.72093091]
[1767623112950,7.50026945,133.33,133.3,0.72093091]
[1767623113328,21.88981078,133.34,133.3,0.72093091]
[1767623113630,25.78918161,133.34,133.3,0.72093091]
[1767623114560,171.10557895,133.6,133.32,0.72093091]
[1767623114561,8.20878318,133.36,133.32,0.72093091]
[1767623114848,7.49883277,133.36,133.32,0.72093091]
[1767623115445,11.3982036,133.36,133.32,0.72093091]
[1767623115647,7.49883277,133.36,133.32,0.72093091]
[1767623115825,11.3982036,133.36,133.32,0.72093091]
[1767623117348,12.10751524,133.36,133.32,0.72093091]
[1767623118253,4.54607683,133.35,133.31,8.22219433]
[1767623118441,3.89937083,133.34,133.31,0.72093091]
[1767623119040,3.89937083,133.34,133.29,13.68]
[1767623119041,4.60805641,133.34,133.29,14.40093091]
[1767623119442,4.60805641,133.34,133.3,0.72093091]
[1767623121050,12.10777158,133.34,133.3,0.72093091]
[1767623121446,0.6473258,133.33,133.29,21.18214986]
[1767623121756,0.6473258,133.33,133.29,25.08152069]
[1767623122357,0.6473258,133.33,133.29,11.40152069]
[1767623122557,11.399086,133.34,133.26,0.1]
[1767623122558,0.64852863,133.29,133.26,0.1]
[1767623122779,3.89937083,133.29,133.26,0.1]
[1767623123444,13.68,133.31,133.25,0.72093091]
[1767623123630,3.89937083,133.3,133.25,0.72093091]
[1767623124031,3.89937083,133.29,133.25,0.72093091]
[1767623124669,3.89937083,133.29,133.25,8.22514728]
[1767623124836,3.89937083,133.28,133.25,7.50421637]
[1767623126656,3.89937083,133.28,133.26,0.72093091]
[1767623127262,3.89937083,133.29,133.26,0.72093091]
[1767623127557,3.89937083,133.27,133.24,90.23305297]
[1767623127937,4.00027394,133.28,133.24,89.51212206]
[1767623128550,4.00027394,133.28,133.24,90.23305297]
[1767623128747,0.10090311,133.28,133.24,97.73800987]
[1767623128942,3.89937083,133.28,133.24,97.73800987]
[1767623130151,4.19060423,133.29,133.24,101.6373807]
[1767623130541,3.89937083,133.29,133.25,0.72093091]
[1767623131265,3.89937083,133.29,133.25,8.22559227]
[1767623131439,3.89937083,133.29,133.26,0.69017861]
[1767623131760,11.40107842,133.31,133.27,0.69017861]
[1767623133260,3.89937083,133.3,133.27,0.69017861]
[1767623133774,3.89937083,133.29,133.25,0.69017861]
[1767623134646,3.89937083,133.29,133.26,0.69017861]
[1767623135173,3.89937083,133.3,133.26,0.69017861]
[1767623135864,11.4014429,133.3,133.26,0.69017861]
[1767623139468,3.89937083,133.3,133.27,0.69017861]
[1767623140360,11.49993605,133.31,133.27,0.69017861]
[1767623140672,3.89937083,133.3,133.27,0.69017861]
[1767623141372,11.40136409,133.3,133.27,0.69017861]
[1767623142576,3.89937083,133.3,133.27,0.69017861]
[1767623142873,3.89937083,133.29,133.27,0.69017861]
[1767623144261,3.89937083,133.28,133.25,8.19486904]
[1767623144473,3.89937083,133.29,133.26,0.69017861]
[1767623145313,7.50215791,133.3,133.26,0.69017861]
[1767623145314,3.89937083,133.3,133.26,0.69017861]
[1767623145476,7.50096261,133.32,133.26,0.69017861]
[1767623145776,0.2912334,133.35,133.29,0.69017861]
[1767623145955,3.89937083,133.34,133.29,0.69017861]
[1767623146367,11.39935324,133.34,133.3,0.69017861]
[1767623147169,3.89937083,133.33,133.3,0.69017861]
[1767623147375,3.89937083,133.33,133.3,0.66017861]
[1767623147569,3.89937083,133.32,133.3,0.66017861]
[1767623148277,3.89937083,133.31,133.27,7.50329386]
[1767623148663,2.49656026,133.3,133.26,21.18385435]
[1767623148970,2.49656026,133.3,133.25,7.5043936]
[1767623149356,2.49656026,133.3,133.26,0.69017861]
[1767623149556,2.49656026,133.29,133.26,0.69017861]
[1767623149762,2.49656026,133.3,133.27,0.69017861]
[1767623150560,2.49656026,133.32,133.28,0.69017861]
[1767623151181,2.81557132,133.32,133.28,0.69017861]
[1767623151482,2.49656026,133.31,133.28,0.69017861]
[1767623151874,0.31901106,133.32,133.28,0.69017861]
[1767623152075,2.49656026,133.32,133.28,0.69017861]
[1767623152657,9.99787298,133.31,133.28,0.69017861]
[1767623152882,10.31688404,133.31,133.26,8.19409621]
[1767623153083,10.31688404,133.31,133.27,0.69754703]
[1767623153084,2.49656026,133.3,133.27,0.69754703]
[1767623153776,9.99787298,133.31,133.27,0.69754703]
[1767623154172,9.99787298,133.31,133.28,0.69754703]
[1767623154789,9.99751536,133.32,133.29,0.69754703]
[1767623156184,2.49656026,133.31,133.29,0.69754703]
[1767623156490,2.49656026,133.31,133.27,0.69754703]
[1767623157189,2.49656026,133.31,133.28,0.69754703]
[1767623157389,2.49656026,133.3,133.28,0.69754703]
[1767623157583,2.49656026,133.3,133.27,0.69754703]
[1767623158385,2.81339321,133.3,133.26,7.50397399]
[1767623158974,2.49656026,133.29,133.25,8.20198799]
[1767623159168,2.49656026,133.28,133.25,0.69754703]
[1767623159370,2.5999167,133.29,133.25,0.69754703]
[1767623160305,2.49656026,133.26,133.24,89.51212206]
[1767623160474,0.3212334,133.29,133.25,0.69754703]
[1767623160679,2.81779366,133.29,133.25,0.69754703]
[1767623160975,0.3212334,133.29,133.25,0.69754703]
[1767623161297,0.3212334,133.29,133.25,3.19410729]
[1767623161900,7.82376669,133.29,133.25,0.69754703]
[1767623163097,7.50253329,133.29,133.25,0.69754703]
[1767623163796,7.50253329,133.29,133.26,0.68045749]
[1767623163976,7.50253329,133.29,133.25,0.68045749]
[1767623163977,2.59556026,133.29,133.25,0.68045749]
[1767623164496,2.49656026,133.29,133.25,0.68045749]
[1767623164797,2.59776037,133.29,133.25,0.68045749]
[1767623165574,2.49656026,133.28,133.25,0.68045749]
[1767623166694,2.49656026,133.28,133.22,0.68045749]
[1767623166695,2.49656026,133.26,133.22,0.68045749]
[1767623166888,2.49656026,133.25,133.22,0.68045749]
[1767623167202,13.68,133.27,133.22,0.68045749]
[1767623167493,2.49656026,133.25,133.22,0.68045749]
[1767623168300,2.49656026,133.24,133.22,0.68045749]
[1767623168505,10.00189352,133.24,133.2,0.68045749]
[1767623169994,7.50533326,133.24,133.2,0.68045749]
[1767623172511,7.50533326,133.24,133.2,8.1879166]
[1767623173702,7.50533326,133.24,133.21,0.68045749]
[1767623174711,10.0015366,133.25,133.21,0.68045749]
[1767623175202,2.49656026,133.26,133.22,0.68045749]
[1767623176711,10.00120163,133.26,133.22,0.68045749]
[1767623177395,7.50464137,133.26,133.22,0.68045749]
[1767623177707,10.00120163,133.26,133.22,0.68045749]
[1767623181406,7.50464137,133.26,133.22,0.68045749]
[1767623181592,2.49656026,133.28,133.24,0.68045749]
[1767623181789,2.49656026,133.29,133.25,0.68045749]
[1767623182213,18.75527307,133.3,133.26,0.68045749]
[1767623182214,9.99843572,133.3,133.26,0.68045749]
[1767623182513,9.99843572,133.3,133.26,0.65045749]
[1767623182689,7.50187546,133.3,133.22,27.02295365]
[1767623182890,2.49656026,133.28,133.23,2.49656026]
[1767623183112,0.03335644,133.29,133.23,2.49656026]
[1767623183298,2.49656026,133.28,133.23,2.49656026]
[1767623183696,2.49656026,133.28,133.23,10.0019379]
[1767623184411,2.49656026,133.28,133.24,0.68045749]
[1767623185109,9.9998711,133.28,133.24,0.68045749]
[1767623188421,7.53579473,133.29,133.24,0.68045749]
[1767623188600,2.49656026,133.28,133.24,0.68045749]
[1767623188801,2.49656026,133.25,133.22,0.68045749]
[1767623189002,2.49656026,133.24,133.21,0.68045749]
[1767623190401,10.03535549,133.24,133.19,8.18823615]
[1767623190604,10.00199905,133.24,133.2,0.68045749]
[1767623192520,2.49656026,133.23,133.2,0.68045749]
[1767623193022,7.50543879,133.24,133.2,0.68045749]
[1767623193023,10.00199905,133.24,133.2,0.68045749]
[1767623194013,2.49656026,133.23,133.2,0.68045749]
[1767623195111,10.00255032,133.23,133.2,0.68045749]
[1767623196826,26.30388902,133.23,133.19,0.67785002]
[1767623197125,2.49656026,133.22,133.19,0.67785002]
[1767623197328,10.00299837,133.22,133.19,0.67785002]
[1767623198913,2.49656026,133.21,133.18,13.68]
[1767623199321,2.49656026,133.21,133.17,0.67785002]
[1767623201421,10.0035572,133.21,133.17,0.67785002]
[1767623202129,10.0035572,133.21,133.18,0.67785002]
[1767623202130,2.49656026,133.21,133.18,0.67785002]
[1767623202428,7.5075075,133.2,133.18,0.67785002]
[1767623202634,10.00375676,133.21,133.18,0.67785002]
[1767623203634,0.03335644,133.2,133.16,10.7841044]
[1767623204437,10.0371132,133.21,133.16,10.7841044]
[1767623204728,18.76612642,133.22,133.18,0.67785002]
[1767623204729,10.03649832,133.22,133.18,0.67785002]
[1767623205437,7.53993806,133.22,133.18,3.17441028]
[1767623206237,10.03649832,133.22,133.18,0.67785002]
[1767623209021,10.00314188,133.22,133.18,0.67785002]
[1767623209623,7.50658162,133.22,133.18,0.67785002]
[1767623209819,7.50658162,133.22,133.18,3.17441028]
[1767623210143,7.50658162,133.22,133.18,0.67785002]
[1767623210323,10.03649832,133.22,133.18,0.67785002]
[1767623210530,11.41279204,133.22,133.18,0.67785002]
[1767623210723,7.50658162,133.22,133.18,0.67785002]
[1767623210924,7.50658162,133.22,133.19,0.67785002]
[1767623211324,0.03335644,133.21,133.17,12.09297334]
[1767623212140,0.03335644,133.21,133.17,8.18676292]
[1767623212348,0.03335644,133.21,133.17,12.09297334]
[1767623213840,11.41279204,133.22,133.18,0.69239706]
[1767623214344,11.41142367,133.25,133.21,0.69239706]
[1767623214643,7.50521325,133.25,133.21,0.69239706]
[1767623215450,11.41142367,133.25,133.21,0.69239706]
[1767623215746,3.90621042,133.23,133.2,0.69239706]
[1767623218328,11.41208937,133.23,133.2,0.69239706]
[1767623218945,7.50587895,133.23,133.2,0.69239706]
[1767623219250,11.41208937,133.23,133.2,0.69239706]
[1767623224557,7.50587895,133.23,133.2,0.69239706]
[1767623225835,7.50587895,133.23,133.2,0.66239706]
[1767623226750,18.8233423,133.27,133.21,3.90621042]
[1767623226955,18.8233423,133.27,133.23,3.90621042]
[1767623227258,18.8233423,133.27,133.22,3.90621042]
[1767623227661,3.90621042,133.26,133.21,3.90621042]
[1767623227957,11.41033768,133.26,133.22,0.66450956]
[1767623228660,11.41033768,133.26,133.22,0.63450956]
[1767623230371,18.8233423,133.27,133.22,11.4125171]
[1767623230372,11.40997975,133.27,133.22,11.4125171]
[1767623230860,11.40997975,133.27,133.23,0.66450956]
[1767623231364,3.90621042,133.24,133.21,0.66450956]
[1767623232452,11.50478289,133.25,133.21,0.66450956]
[1767623234163,3.90621042,133.24,133.21,0.66450956]
[1767623234366,11.4114755,133.24,133.21,0.66450956]
[1767623238370,11.4114755,133.24,133.19,0.66450956]
[1767623238371,3.90621042,133.22,133.19,0.66450956]
[1767623240470,3.90621042,133.2,133.18,0.66450956]
[1767623240676,3.90621042,133.19,133.18,0.66450956]
[1767623240851,3.90621042,133.2,133.18,0.66450956]
[1767623243263,11.4137649,133.2,133.17,0.66450956]
[1767623243658,3.90621042,133.19,133.17,0.66450956]
[1767623243870,7.50863493,133.18,133.16,0.1]
[1767623244054,11.4145068,133.19,133.16,0.76450956]
[1767623244783,11.4145068,133.19,133.14,21.29060101]
[1767623244784,3.90621042,133.17,133.14,0.76450956]
[1767623245278,3.99956686,133.18,133.14,0.76450956]
[1767623245661,0.09335644,133.16,133.12,0.76450956]
[1767623245866,11.41677506,133.15,133.12,0.76450956]
[1767623247382,11.5096021,133.16,133.12,0.76450956]
[1767623250069,11.4165416,133.15,133.12,0.76450956]
[1767623250269,0.09335644,133.17,133.13,0.66450956]
[1767623250471,3.99956686,133.17,133.13,0.66450956]
[1767623250870,0.09335644,133.17,133.13,0.66450956]
[1767623251071,7.50863493,133.18,133.15,0.69744738]
[1767623251278,11.50820179,133.18,133.14,0.69744738]
[1767623252905,3.90621042,133.17,133.14,0.69744738]
[1767623253101,3.84621043,133.17,133.14,0.69744738]
[1767623254068,11.35550238,133.17,133.14,0.69744738]
[1767623256395,3.90621042,133.15,133.12,0.79744738]
[1767623256602,3.84621043,133.15,133.12,0.79744738]
[1767623256777,3.78621044,133.15,133.12,0.79744738]
[1767623257374,11.41550237,133.17,133.13,0.69744738]
[1767623258599,3.90621042,133.16,133.13,0.69744738]
[1767623260104,11.50885881,133.17,133.13,8.20889039]
[1767623260280,9.01013864,133.19,133.14,0.69744738]
[1767623260476,3.99956686,133.18,133.14,0.69744738]
[1767623261595,11.50821476,133.18,133.14,0.69744738]
[1767623261795,1.40820136,133.19,133.16,0.69744738]
[1767623262604,5.40776822,133.19,133.15,0.69744738]
[1767623262808,12.91601259,133.19,133.15,0.69744738]
[1767623263808,1.40820136,133.19,133.16,4.6036578]
[1767623264709,1e-08,133.19,133.18,4.6036578]
[1767623264917,0.09335644,133.25,133.2,0.69744738]
[1767623265081,0.09335644,133.25,133.2,3.90621042]
[1767623265082,0.09335644,133.24,133.2,3.90621042]
[1767623267588,0.09335644,133.24,133.2,11.41370334]
[1767623268415,0.09335644,133.24,133.21,3.90621042]
[1767623268909,8.3493641,133.26,133.22,3.90621042]
[1767623269089,8.44272054,133.26,133.21,0.69744738]
[1767623269295,8.44272054,133.26,133.22,3.90621042]
[1767623269514,0.09335644,133.25,133.22,3.90621042]
[1767623270088,0.09335644,133.24,133.2,4.6036578]
[1767623270396,0.09335644,133.24,133.2,0.69744738]
[1767623270712,0.09335644,133.24,133.2,3.19651139]
[1767623270891,29.70210272,133.26,133.22,0.69744738]
[1767623271502,27.20303871,133.26,133.22,0.69744738]
[1767623271695,10.94178455,133.26,133.22,0.69744738]
[1767623274314,8.44272054,133.26,133.22,0.69744738]
[1767623274519,10.94178455,133.26,133.22,0.69744738]
[1767623274910,2.59242045,133.24,133.2,0.65941416]
[1767623275217,2.49906401,133.21,133.17,0.65941416]
[1767623275717,2.59242045,133.21,133.17,0.65941416]
[1767623276417,7.6003594,133.21,133.17,3.15847817]
[1767623276918,7.6003594,133.21,133.17,0.65941416]
[1767623278899,18.76181554,133.25,133.19,0.65941416]
[1767623279227,23.68431768,133.24,133.2,0.65941416]
[1767623279397,10.00431768,133.24,133.2,0.65941416]
[1767623279602,10.09767412,133.24,133.2,0.65941416]
[1767623280906,21.18495052,133.25,133.21,0.71088063]
[1767623281102,7.50495052,133.25,133.22,0.71088063]
[1767623281303,10.84842855,133.26,133.22,0.71088063]
[1767623281502,8.34936454,133.26,133.23,0.71088063]
[1767623281721,8.34936454,133.26,133.23,0.6830797]
[1767623281901,0.84498925,133.26,133.23,2.49906401]
[1767623282106,0.84498925,133.26,133.22,2.49906401]
[1767623282310,0.84498925,133.26,133.22,10.00509659]
[1767623282626,8.34926665,133.26,133.22,2.49906401]
[1767623282803,8.34926665,133.26,133.22,10.00540928]